bitfinex-derivatives/quotes_BTCF0:USTF0_20250508
["timestamp","ask_amount","ask_price","bid_price","bid_amount"]
[1746690822684,0.3129439,99229.0,99228.0,0.178]
[1746690823088,0.3129439,99229.0,99228.0,0.15280706]
[1746690823283,0.3119439,99229.0,99228.0,0.15280706]
[1746690823887,0.3109439,99229.0,99228.0,0.15280706]
[1746690824092,0.3119439,99229.0,99228.0,0.11753694]
[1746690827197,0.3119439,99229.0,99228.0,0.10753694]
[1746690827394,0.3119439,99229.0,99228.0,0.08990185]
[1746690827596,0.3129439,99229.0,99228.0,0.08990185]
[1746690828607,0.3119439,99229.0,99228.0,0.08990185]
[1746690829104,0.3119439,99229.0,99228.0,0.06470887]
[1746690829402,0.3109439,99229.0,99228.0,0.06470887]
[1746690829600,0.3119439,99229.0,99228.0,0.06470887]
[1746690829790,0.3119439,99229.0,99228.0,0.02943869]
[1746690830305,0.3129439,99229.0,99228.0,0.02943869]
[1746690833099,0.3119439,99229.0,99228.0,0.02943869]
[1746690833503,0.3109439,99229.0,99228.0,0.02943869]
[1746690834506,0.3109439,99229.0,99228.0,0.03043869]
[1746690834903,0.201552,99225.0,99224.0,0.10388]
[1746690835101,0.201552,99225.0,99224.0,0.15388]
[1746690835301,0.201552,99225.0,99224.0,0.11105197]
[1746690835607,0.211552,99225.0,99224.0,0.11105197]
[1746690835807,0.314352,99225.0,99224.0,0.11105197]
[1746690836209,0.314352,99225.0,99224.0,0.27905197]
[1746690836610,0.314352,99225.0,99224.0,0.28005197]
[1746690836805,0.314352,99225.0,99224.0,0.28105197]
[1746690837012,0.314352,99225.0,99224.0,0.22]
[1746690838309,0.314352,99225.0,99224.0,0.219]
[1746690838815,0.314352,99225.0,99224.0,0.218]
[1746690840015,0.314352,99225.0,99224.0,0.18272985]
[1746690840513,0.314352,99225.0,99224.0,0.198]
[1746690841316,0.304352,99225.0,99224.0,0.198]
[1746690841717,0.304352,99225.0,99224.0,0.17280703]
[1746690843618,0.304352,99225.0,99224.0,0.15517196]
[1746690847018,0.304352,99225.0,99224.0,0.11990181]
[1746690847720,0.304352,99225.0,99224.0,0.09470884]
[1746690851822,0.304352,99225.0,99224.0,0.07707377]
[1746690852523,0.304352,99225.0,99224.0,0.04180363]
[1746690854122,0.304352,99225.0,99224.0,0.01660969]
[1746690855223,0.40710545,99225.0,99224.0,0.168]
[1746690856023,0.45710545,99225.0,99224.0,0.168]
[1746690856521,0.40710545,99225.0,99224.0,0.168]
[1746690857228,0.41710545,99225.0,99224.0,0.168]
[1746690857427,0.41710545,99225.0,99224.0,0.13272841]
[1746690859132,0.314352,99225.0,99224.0,0.13272841]
[1746690859926,0.314352,99225.0,99224.0,0.11509262]
[1746690860430,0.314352,99225.0,99224.0,0.08989863]
[1746690860730,0.304352,99225.0,99224.0,0.08989863]
[1746690862832,0.304352,99225.0,99224.0,0.05462705]
[1746690864134,0.304352,99225.0,99224.0,0.06462705]
[1746690864432,0.304352,99225.0,99224.0,0.05462705]
[1746690865032,0.304352,99225.0,99224.0,0.06462705]
[1746690866931,0.304352,99225.0,99224.0,0.03943308]
[1746690868024,0.304352,99225.0,99224.0,0.02179731]
[1746690868333,0.304352,99225.0,99224.0,0.01179731]
[1746690869225,0.2015601,99221.0,99220.0,0.02592577]
[1746690869422,0.2015601,99221.0,99220.0,0.07592577]
[1746690870036,0.3047601,99221.0,99220.0,0.07592577]
[1746690870334,0.3047601,99221.0,99220.0,0.24392577]
[1746690871842,0.3047601,99221.0,99220.0,0.24492577]
[1746690872138,0.3047601,99221.0,99220.0,0.219]
[1746690873134,0.3047601,99221.0,99220.0,0.19380604]
[1746690873639,0.3047601,99221.0,99220.0,0.23440604]
[1746690874044,0.3047601,99221.0,99220.0,0.19380604]
[1746690876037,0.3047601,99221.0,99220.0,0.17617024]
[1746690879136,0.3047601,99221.0,99220.0,0.15097623]
[1746690879337,0.3047601,99221.0,99220.0,0.19097623]
[1746690883341,0.3047601,99221.0,99220.0,0.18997623]
[1746690884839,0.3047601,99221.0,99220.0,0.17234035]
[1746690889237,0.3047601,99221.0,99220.0,0.04]
[1746690890346,0.3047601,99221.0,99220.0,0.208]
[1746690892147,0.3047601,99221.0,99220.0,0.04]
[1746690893150,0.3047601,99221.0,99220.0,0.208]
[1746690897349,0.3047601,99221.0,99220.0,0.19036285]
[1746690909254,0.0518,99221.0,99220.0,0.40192495]
[1746690909451,0.054,99225.0,99224.0,0.201552]
[1746690909650,0.054,99225.0,99224.0,0.401552]
[1746690909852,0.054,99225.0,99224.0,0.502332]
[1746690910050,0.054,99225.0,99224.0,0.670332]
[1746690910560,0.12775275,99238.0,99237.0,0.2015276]
[1746690910561,0.32927975,99238.0,99237.0,0.2015276]
[1746690910757,0.32927975,99238.0,99237.0,0.7723276]
[1746690910945,0.32927975,99238.0,99237.0,0.8730956]
[1746690911151,0.32927975,99238.0,99237.0,1.0410956]
[1746690911350,0.201527,99238.0,99237.0,1.05114587]
[1746690913057,0.201527,99238.0,99237.0,1.05214587]
[1746690913757,0.201527,99238.0,99237.0,0.7408]
[1746690914059,0.253027,99238.0,99237.0,0.7408]
[1746690914859,0.253027,99238.0,99237.0,0.9423276]
[1746690915360,0.253027,99238.0,99237.0,0.95260104]
[1746690915552,0.201527,99238.0,99237.0,0.95260104]
[1746690915754,0.201527,99238.0,99237.0,0.75107344]
[1746690916252,0.201527,99238.0,99237.0,0.75007344]
[1746690916459,0.201527,99238.0,99237.0,0.75407344]
[1746690916655,0.307427,99238.0,99237.0,0.75307344]
[1746690916857,0.307427,99238.0,99237.0,0.75607344]
[1746690917558,0.307427,99238.0,99237.0,0.95760104]
[1746690921962,0.307427,99238.0,99237.0,1.05756104]
[1746690923163,0.307427,99238.0,99237.0,1.11166104]
[1746690923662,0.307427,99238.0,99237.0,0.9473276]
[1746690923865,0.307427,99238.0,99237.0,1.0460876]
[1746690924067,0.307427,99238.0,99237.0,1.1001876]
[1746690924869,0.307427,99238.0,99237.0,1.11048729]
[1746690929775,0.307427,99238.0,99237.0,0.74968729]
[1746690929967,0.307427,99238.0,99237.0,1.11048729]
[1746690931075,0.307427,99238.0,99237.0,1.05638729]
[1746690935378,0.307427,99238.0,99237.0,0.84456]
[1746690935578,0.307427,99238.0,99237.0,0.7458]
[1746690935779,0.307427,99238.0,99237.0,0.84456]
[1746690943383,0.307427,99238.0,99237.0,0.84056]
[1746690943574,0.307427,99238.0,99237.0,0.84356]
[1746690952794,0.307427,99238.0,99237.0,0.48276]
[1746690952997,0.307427,99238.0,99237.0,0.84356]
[1746690956095,0.307427,99238.0,99237.0,0.7448]
[1746690956294,0.307427,99238.0,99237.0,0.84236]
[1746690961204,0.307427,99238.0,99237.0,0.79236]
[1746690963296,0.307427,99238.0,99237.0,0.6948]
[1746690963494,0.307427,99238.0,99237.0,0.79236]
[1746690971511,0.307427,99238.0,99237.0,0.6948]
[1746690980718,0.307427,99238.0,99237.0,0.5348]
[1746690981217,0.307427,99238.0,99237.0,0.3668]
[1746690982522,0.418195,99238.0,99237.0,0.006]
[1746690983011,0.428195,99238.0,99237.0,0.006]
[1746690983206,1.096195,99238.0,99237.0,0.006]
[1746690983722,0.2015439,99229.0,99228.0,0.3608]
[1746690984018,0.2215439,99229.0,99228.0,0.3608]
[1746690984611,0.3295439,99229.0,99228.0,0.3608]
[1746690985119,0.2015581,99222.0,99221.0,0.09756]
[1746690985319,0.2015581,99222.0,99221.0,0.54836]
[1746690985819,0.3095581,99222.0,99221.0,0.54836]
[1746690986222,0.3095581,99222.0,99221.0,0.71636]
[1746690986519,0.3095581,99222.0,99221.0,0.71836]
[1746690987622,0.3095581,99222.0,99221.0,0.72136]
[1746690988922,0.3095581,99222.0,99221.0,7.40666]
[1746690993422,0.3095581,99222.0,99221.0,7.3091]
[1746690993621,0.3095581,99222.0,99221.0,7.4055]
[1746690997626,0.3095581,99222.0,99221.0,7.4045]
[1746690998726,0.3095581,99222.0,99221.0,7.4035]
[1746691001529,0.3095581,99222.0,99221.0,7.4025]
[1746691001724,0.3095581,99222.0,99221.0,7.4035]
[1746691002317,0.3095581,99222.0,99221.0,7.0427]
[1746691002622,0.3095581,99222.0,99221.0,7.4015]
[1746691002829,0.3095581,99222.0,99221.0,7.4025]
[1746691003232,0.3095581,99222.0,99221.0,7.4015]
[1746691003426,0.3095581,99222.0,99221.0,7.4025]
[1746691004032,0.3095581,99222.0,99221.0,7.4015]
[1746691004233,0.3095581,99222.0,99221.0,7.4025]
[1746691004834,0.3095581,99222.0,99221.0,7.4005]
[1746691005028,0.3095581,99222.0,99221.0,7.4025]
[1746691007934,0.3095581,99222.0,99221.0,7.4015]
[1746691008134,0.3095581,99222.0,99221.0,7.4005]
[1746691011146,0.3095581,99222.0,99221.0,7.4015]
[1746691011448,0.3095581,99222.0,99221.0,7.4025]
[1746691011649,0.3095581,99222.0,99221.0,7.4015]
[1746691011845,0.3095581,99222.0,99221.0,7.4025]
[1746691018557,0.3095581,99222.0,99221.0,7.3125]
[1746691019657,0.3095581,99222.0,99221.0,7.3225]
[1746691021050,0.3095581,99222.0,99221.0,7.3525]
[1746691027655,0.3095581,99222.0,99221.0,7.2161]
[1746691028056,0.3095581,99222.0,99221.0,7.2461]
[1746691028255,0.3095581,99222.0,99221.0,7.34138]
[1746691029961,0.0015,99245.0,99229.0,0.2519233]
[1746691030165,0.2015463,99230.0,99229.0,0.40220303]
[1746691030355,0.2015463,99230.0,99229.0,0.65674543]
[1746691030756,0.2015463,99230.0,99229.0,0.85828933]
[1746691031166,0.2015463,99230.0,99229.0,1.02928933]
[1746691031867,0.2015463,99230.0,99229.0,1.03128933]
[1746691033670,0.2015463,99230.0,99229.0,1.02828933]
[1746691033868,0.2495463,99230.0,99229.0,1.03028933]
[1746691034373,0.2495463,99230.0,99229.0,1.02828933]
[1746691034562,0.2495463,99230.0,99229.0,1.03028933]
[1746691035566,0.253641,99231.0,99230.0,0.2015418]
[1746691035869,0.2519127,99240.0,99239.0,0.2015195]
[1746691036068,0.2519127,99240.0,99239.0,0.9203195]
[1746691036964,0.2519127,99240.0,99239.0,0.93058315]
[1746691037467,0.2519127,99240.0,99239.0,0.93258315]
[1746691039467,0.2519127,99240.0,99239.0,0.93458315]
[1746691044762,0.2519127,99240.0,99239.0,0.98608315]
[1746691045367,0.2519127,99240.0,99239.0,0.78456365]
[1746691045574,0.2519127,99240.0,99239.0,0.73306365]
[1746691046567,0.2519127,99240.0,99239.0,0.82834365]
[1746691046966,0.2519127,99240.0,99239.0,0.81808]
[1746691050869,0.1026,99242.0,99241.0,0.2015195]
[1746691051076,0.1026,99242.0,99241.0,0.5495195]
[1746691051376,0.3041215,99242.0,99241.0,0.5495195]
[1746691051568,0.3041215,99242.0,99241.0,0.6503195]
[1746691052067,0.3041215,99242.0,99241.0,0.6513195]
[1746691052265,0.3041215,99242.0,99241.0,0.6533195]
[1746691052774,0.2015215,99242.0,99241.0,0.6533195]
[1746691053074,0.2503215,99242.0,99241.0,0.6533195]
[1746691054373,0.2981215,99242.0,99241.0,0.6533195]
[1746691058776,0.2981215,99242.0,99241.0,0.6046195]
[1746691064779,0.2981215,99242.0,99241.0,0.7346195]
[1746691074487,0.2981215,99242.0,99241.0,0.8288995]
[1746691078490,0.2981215,99242.0,99241.0,7.5127995]
[1746691091303,0.2981215,99242.0,99241.0,7.31128]
[1746691092407,0.2981215,99242.0,99241.0,7.5127995]
[1746691098415,0.2981215,99242.0,99241.0,7.8735995]
[1746691099911,0.2981215,99242.0,99241.0,7.67208]
[1746691101607,0.2981215,99242.0,99241.0,7.8735995]
[1746691101916,0.2981215,99242.0,99241.0,7.67208]
[1746691102306,0.2981215,99242.0,99241.0,7.67008]
[1746691102507,0.2981215,99242.0,99241.0,7.67208]
[1746691104514,0.2981215,99242.0,99241.0,7.5778]
[1746691104717,0.2981215,99242.0,99241.0,7.67104]
[1746691105518,0.2981215,99242.0,99241.0,7.5778]
[1746691105708,0.2981215,99242.0,99241.0,7.67104]
[1746691108417,0.2981215,99242.0,99241.0,7.52104]
[1746691108616,0.2981215,99242.0,99241.0,7.57104]
[1746691110921,0.2981215,99242.0,99241.0,7.4778]
[1746691111107,0.2981215,99242.0,99241.0,7.57012]
[1746691117818,0.2981215,99242.0,99241.0,7.56912]
[1746691118010,0.2981215,99242.0,99241.0,7.57212]
[1746691118418,0.2981215,99242.0,99241.0,7.56912]
[1746691118722,0.2981215,99242.0,99241.0,0.88822]
[1746691120022,0.2981215,99242.0,99241.0,0.88722]
[1746691125630,0.2981215,99242.0,99241.0,0.97722]
[1746691129231,0.2981215,99242.0,99241.0,1.0749]
[1746691129437,0.2981215,99242.0,99241.0,1.16722]
[1746691130530,0.2981215,99242.0,99241.0,1.16522]
[1746691130732,0.2981215,99242.0,99241.0,1.16722]
[1746691131932,0.2981215,99242.0,99241.0,1.3687395]
[1746691133127,0.2981215,99242.0,99241.0,1.3667395]
[1746691133335,0.2981215,99242.0,99241.0,1.3687395]
[1746691134432,0.2981215,99242.0,99241.0,8.0526395]
[1746691137535,0.2981215,99242.0,99241.0,7.85112]
[1746691140737,0.2981215,99242.0,99241.0,8.0526395]
[1746691141740,0.2981215,99242.0,99241.0,7.5626395]
[1746691141930,0.2981215,99242.0,99241.0,7.8926395]
[1746691142132,0.2981215,99242.0,99241.0,7.8906395]
[1746691142340,0.2981215,99242.0,99241.0,7.8926395]
[1746691144146,0.2981215,99242.0,99241.0,7.8906395]
[1746691144344,0.2981215,99242.0,99241.0,7.8926395]
[1746691144638,0.2015143,99244.0,99243.0,0.2015134]
[1746691144835,0.0513,99248.0,99244.0,0.2015134]
[1746691145041,0.2014865,99259.0,99258.0,0.2014797]
[1746691145229,0.2014809,99260.0,99259.0,0.0496]
[1746691145430,0.2014809,99260.0,99259.0,0.3096]
[1746691146238,0.05188073,99262.0,99259.0,0.3096]
[1746691146239,0.00151153,99262.0,99260.0,0.2014789]
[1746691146537,0.2014768,99262.0,99261.0,0.0463]
[1746691146739,0.2014768,99262.0,99261.0,0.2563]
[1746691147135,0.2014768,99262.0,99261.0,0.4243]
[1746691147740,0.2034768,99262.0,99261.0,0.4243]
[1746691147938,0.2994768,99262.0,99261.0,0.4243]
[1746691148138,0.2994768,99262.0,99261.0,0.4263]
[1746691148439,0.2994768,99262.0,99261.0,0.38]
[1746691149639,0.2974768,99262.0,99261.0,0.322]
[1746691150038,0.2974768,99262.0,99261.0,0.332]
[1746691151244,0.2974768,99262.0,99261.0,0.33]
[1746691151445,0.2974768,99262.0,99261.0,0.332]
[1746691154447,0.2974768,99262.0,99261.0,0.33]
[1746691154649,0.2974768,99262.0,99261.0,0.332]
[1746691160146,0.2974768,99262.0,99261.0,0.6928]
[1746691166554,0.2974768,99262.0,99261.0,0.7414]
[1746691175168,0.2974768,99262.0,99261.0,0.7906]
[1746691177158,0.2974768,99262.0,99261.0,0.7414]
[1746691185571,0.2974768,99262.0,99261.0,0.7314]
[1746691186469,0.2974768,99262.0,99261.0,0.82192]
[1746691187273,0.2974768,99262.0,99261.0,0.7314]
[1746691187473,0.2974768,99262.0,99261.0,0.82192]
[1746691193377,0.096,99262.0,99261.0,0.82192]
[1746691195483,0.096,99262.0,99261.0,1.0233989]
[1746691195778,0.096,99262.0,99261.0,0.82192]
[1746691199081,0.06126799,99280.0,99261.0,0.82192]
[1746691199082,0.04969996,99280.0,99261.0,0.88192]
[1746691199383,0.04969996,99280.0,99279.0,0.3608]
[1746691199582,0.04969996,99289.0,99279.0,0.45132]
[1746691199782,0.05956815,99289.0,99279.0,0.45132]
[1746691199979,0.10072,99288.0,99279.0,0.45132]
[1746691200181,0.10072,99287.0,99279.0,0.45132]
[1746691200384,0.24072,99287.0,99279.0,0.45132]
[1746691200682,0.100724,99286.0,99279.0,0.45132]
[1746691200877,0.16921339,99286.0,99279.0,0.45132]
[1746691201083,0.09921392,99285.0,99279.0,0.3608]
[1746691201274,0.3608,99323.0,99284.0,0.411158]
[1746691201475,0.7108,99312.0,99296.0,0.3608]
[1746691201975,0.1007,99311.0,99296.0,0.3608]
[1746691202177,0.83340335,99311.0,99296.0,0.3608]
[1746691202484,0.1007,99310.0,99297.0,0.0487]
[1746691202784,0.34,99310.0,99297.0,0.0487]
[1746691202976,0.0973,99309.0,99304.0,0.3608]
[1746691203178,0.4553,99309.0,99304.0,0.3608]
[1746691203375,0.1007,99308.0,99305.0,0.0487]
[1746691203776,0.103,99307.0,99305.0,0.0487]
[1746691204076,0.103,99307.0,99304.0,0.3608]
[1746691204781,0.1007,99306.0,99304.0,0.3608]
[1746691205171,0.2037,99305.0,99304.0,0.3608]
[1746691205376,0.2037,99305.0,99288.0,0.08968]
[1746691205578,0.103,99305.0,99285.0,0.45048]
[1746691205783,0.3608,99294.0,99285.0,0.3608]
[1746691206084,0.1017,99293.0,99275.0,0.3618073]
[1746691206381,0.3608,99276.0,99254.0,0.3608]
[1746691206579,0.1,99275.0,99254.0,0.3608]
[1746691206782,0.200736,99275.0,99254.0,0.3608]
[1746691206978,0.100736,99274.0,99266.0,0.3608]
[1746691207473,0.268,99275.0,99266.0,0.3608]
[1746691207474,0.1001,99273.0,99266.0,0.3608]
[1746691207783,0.0485,99273.0,99266.0,0.3608]
[1746691207970,0.12212652,99272.0,99266.0,0.3608]
[1746691208172,0.23982652,99272.0,99266.0,0.3608]
[1746691208373,0.098936,99271.0,99266.0,0.3608]
[1746691208577,0.048636,99271.0,99266.0,0.3618]
[1746691208782,0.168,99272.0,99266.0,0.3618]
[1746691209086,0.3608,99276.0,99266.0,0.3618]
[1746691209484,0.0476,99275.0,99266.0,0.3628]
[1746691209881,0.0476,99275.0,99274.0,0.3608]
[1746691210183,0.0448,99275.0,99274.0,0.3608]
[1746691210385,0.145532,99275.0,99274.0,0.3608]
[1746691210579,0.117832,99275.0,99274.0,0.3608]
[1746691210779,0.0722,99275.0,99274.0,0.3608]
[1746691210979,0.027632,99275.0,99274.0,0.3608]
[1746691211186,3.2e-05,99275.0,99274.0,0.3764827]
[1746691212185,0.001032,99275.0,99274.0,0.3764827]
[1746691212382,0.100732,99275.0,99274.0,0.3764827]
[1746691212588,0.00756402,99292.0,99274.0,0.3764827]
[1746691212778,0.3608,99302.0,99274.0,0.3764827]
[1746691212779,0.3608,99302.0,99283.0,0.3608]
[1746691212978,0.3608,99302.0,99284.0,0.0156827]
[1746691213179,0.3608,99302.0,99285.0,0.0156827]
[1746691213380,0.3608,99302.0,99286.0,0.0156827]
[1746691213686,0.100712,99301.0,99287.0,0.01573998]
[1746691213882,0.147712,99301.0,99288.0,0.01573998]
[1746691214187,0.3608,99292.0,99289.0,0.01573998]
[1746691214378,0.3608,99292.0,99290.0,0.01573998]
[1746691214580,0.3608,99292.0,99291.0,0.01573998]
[1746691215089,0.711512,99292.0,99291.0,0.01573998]
[1746691215285,0.879512,99292.0,99268.0,0.08972]
[1746691215587,0.3608,99283.0,99273.0,0.0503635]
[1746691215783,0.0549,99282.0,99281.0,0.2014383]
[1746691215983,0.155628,99282.0,99281.0,0.2014383]
[1746691217189,0.155628,99282.0,99281.0,0.2166968]
[1746691217485,0.155628,99282.0,99281.0,0.21669592]
[1746691217685,0.160628,99282.0,99281.0,0.21669592]
[1746691218188,0.323628,99282.0,99281.0,0.21669592]
[1746691218382,0.333628,99282.0,99281.0,0.21669592]
[1746691218787,0.308468,99282.0,99281.0,0.21669592]
[1746691218988,0.312468,99282.0,99281.0,0.21669592]
[1746691219179,0.310468,99282.0,99281.0,0.21669592]
[1746691220991,0.310468,99282.0,99281.0,0.21710346]
[1746691221289,0.142468,99282.0,99281.0,0.21710346]
[1746691221591,0.143468,99282.0,99281.0,0.21710346]
[1746691222591,0.108728,99282.0,99281.0,0.21710346]
[1746691222784,0.108728,99282.0,99281.0,0.26780346]
[1746691223088,0.3185,99289.0,99288.0,0.2014241]
[1746691223282,0.051,99299.0,99298.0,0.2014038]
[1746691223482,0.051,99299.0,99298.0,0.21706896]
[1746691223682,0.151708,99299.0,99298.0,0.21706896]
[1746691224291,0.151708,99299.0,99298.0,0.26796896]
[1746691224487,0.651708,99299.0,99298.0,0.26796896]
[1746691224693,0.3608,99314.0,99298.0,0.06656516]
[1746691224884,0.100704,99303.0,99299.0,0.21706636]
[1746691225084,0.100704,99305.0,99300.0,0.26796456]
[1746691225280,0.100704,99305.0,99301.0,0.01566516]
[1746691225594,0.100704,99304.0,99302.0,0.01566516]
[1746691225786,0.38820602,99304.0,99303.0,0.01566516]
[1746691225984,0.38820602,99304.0,99303.0,0.02596901]
[1746691226179,0.65690602,99304.0,99303.0,0.02596901]
[1746691226389,0.65690602,99304.0,99303.0,0.01030385]
[1746691226594,0.65690602,99304.0,99303.0,0.01573083]
[1746691226890,1.15690602,99304.0,99303.0,0.01573083]
[1746691227983,1.18440602,99304.0,99303.0,0.01573083]
[1746691228187,1.18440602,99304.0,99285.0,0.4111571]
[1746691228188,0.2014149,99293.0,99280.0,0.08834275]
[1746691228395,0.3608,99285.0,99282.0,0.0465]
[1746691228593,0.3608,99285.0,99284.0,0.0494]
[1746691229091,0.62952,99285.0,99284.0,0.0494]
[1746691229393,0.62952,99285.0,99284.0,0.05932226]
[1746691229587,0.63052,99285.0,99284.0,0.05932226]
[1746691230385,0.63252,99285.0,99284.0,0.05932226]
[1746691231285,0.63252,99285.0,99284.0,0.26075446]
[1746691233500,0.5318,99285.0,99284.0,0.26075446]
[1746691236203,0.3638,99285.0,99284.0,0.26075446]
[1746691238501,0.46452,99285.0,99284.0,0.26075446]
[1746691240002,0.4034065,99285.0,99284.0,0.26075446]
[1746691240205,0.10372,99285.0,99284.0,0.2764974]
[1746691240698,0.0187,99294.0,99293.0,0.2014139]
[1746691240902,0.208336,99294.0,99293.0,0.21715684]
[1746691241294,0.376336,99294.0,99293.0,0.21715684]
[1746691241495,0.876336,99294.0,99293.0,0.21715684]
[1746691242100,0.879336,99294.0,99293.0,0.21715684]
[1746691242499,0.881336,99294.0,99293.0,0.21715684]
[1746691242994,0.881336,99294.0,99293.0,0.21689201]
[1746691244703,0.881336,99294.0,99293.0,0.21681805]
[1746691246304,0.881332,99294.0,99293.0,0.21681805]
[1746691246504,0.881332,99294.0,99293.0,0.2014139]
[1746691251505,0.8071152,99294.0,99293.0,0.2014139]
[1746691251898,0.6724091,99294.0,99293.0,0.2014139]
[1746691252696,0.6948091,99294.0,99293.0,0.2014139]
[1746691252898,0.6724091,99294.0,99293.0,0.2014139]
[1746691254207,0.5834891,99294.0,99293.0,0.2014139]
[1746691254410,0.6724091,99294.0,99293.0,0.2014139]
[1746691256700,0.6948091,99294.0,99293.0,0.2014139]
[1746691257108,0.8628091,99294.0,99293.0,0.2014139]
[1746691260402,0.7620971,99294.0,99286.0,0.0503566]
[1746691260605,0.3608,99287.0,99286.0,0.2517847]
[1746691261206,0.5288,99287.0,99286.0,0.2517847]
[1746691261506,1.00657,99287.0,99286.0,0.2517847]
[1746691263114,1.00857,99287.0,99286.0,0.2517847]
[1746691265820,0.969036,99287.0,99286.0,0.2517847]
[1746691266316,0.801036,99287.0,99286.0,0.2517847]
[1746691267722,0.801036,99287.0,99286.0,0.2669619]
[1746691271521,0.56801,99287.0,99286.0,0.2669619]
[1746691271728,0.56801,99287.0,99286.0,0.26747719]
[1746691271910,0.4995653,99287.0,99286.0,0.26747719]
[1746691272109,0.4995653,99287.0,99286.0,0.43547719]
[1746691273517,0.4995653,99287.0,99286.0,0.43544391]
[1746691274124,0.06545,99294.0,99293.0,0.2014139]
[1746691274316,0.06545,99294.0,99293.0,0.21707311]
[1746691274515,0.08824,99298.0,99297.0,0.2014058]
[1746691274729,0.08824,99298.0,99297.0,0.21706501]
[1746691275220,0.08824,99298.0,99297.0,0.38707916]
[1746691275419,0.08824,99298.0,99297.0,0.48347916]
[1746691275820,0.58824,99298.0,99297.0,0.4835616]
[1746691276922,0.59124,99298.0,99297.0,0.4835616]
[1746691277224,0.59124,99298.0,99297.0,0.48356255]
[1746691279021,0.59124,99298.0,99297.0,0.48356167]
[1746691280927,0.59124,99298.0,99297.0,0.48356172]
[1746691281732,0.58824,99298.0,99297.0,0.48356172]
[1746691281920,0.59124,99298.0,99297.0,0.48356172]
[1746691282532,0.59124,99298.0,99297.0,0.59356172]
[1746691282732,0.59124,99298.0,99297.0,0.59356171]
[1746691283035,0.503,99298.0,99297.0,0.59356171]
[1746691286326,0.503,99298.0,99297.0,0.59356221]
[1746691291722,0.503,99298.0,99297.0,0.57781995]
[1746691291928,0.503,99298.0,99297.0,0.59343177]
[1746691296238,0.2788442,99298.0,99297.0,0.67343177]
[1746691296433,0.04821,99302.0,99301.0,0.2013977]
[1746691296636,0.41337602,99304.0,99303.0,0.2013937]
[1746691296933,0.38820602,99304.0,99303.0,0.37700552]
[1746691297237,0.38820602,99304.0,99303.0,0.54500552]
[1746691297440,0.38820602,99304.0,99303.0,0.59240552]
[1746691298737,0.89020602,99304.0,99303.0,0.59240552]
[1746691299337,0.89320602,99304.0,99303.0,0.59240552]
[1746691299737,0.3608,99322.0,99321.0,0.2013572]
[1746691299928,0.3608,99322.0,99321.0,0.21696902]
[1746691300131,0.3608,99322.0,99321.0,0.38496902]
[1746691300838,0.8608,99322.0,99321.0,0.38496902]
[1746691301143,1.27796704,99322.0,99321.0,0.38496902]
[1746691301333,1.27796704,99322.0,99321.0,0.38896902]
[1746691301930,1.27796704,99322.0,99321.0,0.39196902]
[1746691302939,1.27796704,99322.0,99321.0,0.39209585]
[1746691303940,1.27796704,99322.0,99321.0,0.40209585]
[1746691304541,1.27796704,99322.0,99321.0,1.16938902]
[1746691306341,1.27796704,99322.0,99321.0,1.16924414]
[1746691308142,1.27796704,99322.0,99321.0,1.1693889]
[1746691311038,1.27796704,99322.0,99321.0,1.2671889]
[1746691311345,1.27796704,99322.0,99321.0,1.26718867]
[1746691313247,1.27796704,99322.0,99321.0,1.26718868]
[1746691317443,1.27796704,99322.0,99321.0,1.26718861]
[1746691320249,0.91716704,99322.0,99321.0,1.26718861]
[1746691320950,0.91716704,99322.0,99321.0,1.26667413]
[1746691322343,0.91716704,99322.0,99321.0,1.26689341]
[1746691325952,0.91716704,99322.0,99321.0,1.26676706]
[1746691327642,0.75864494,99322.0,99321.0,1.26676706]
[1746691327845,0.60410104,99322.0,99321.0,1.267024]
[1746691328049,0.35838834,99322.0,99321.0,1.267024]
[1746691329252,0.08271624,99322.0,99321.0,1.267024]
[1746691329649,4e-08,99322.0,99321.0,1.26718822]
[1746691329953,0.50000004,99322.0,99321.0,1.26718822]
[1746691330661,0.42162964,99322.0,99321.0,1.26718822]
[1746691332347,0.17601494,99322.0,99321.0,1.26718822]
[1746691332549,0.02051698,99324.0,99323.0,0.2013531]
[1746691332859,0.04027,99328.0,99327.0,0.201345]
[1746691333056,0.04027,99328.0,99327.0,1.20237602]
[1746691333562,0.44784,99340.0,99335.0,0.2013288]
[1746691333757,0.44784,99340.0,99335.0,0.24706665]
[1746691333961,0.44784,99340.0,99339.0,0.2013207]
[1746691334259,0.44784,99340.0,99339.0,0.38505855]
[1746691334457,0.44784,99340.0,99339.0,1.15235172]
[1746691334847,0.94784,99340.0,99339.0,1.24865172]
[1746691335072,0.94784,99340.0,99339.0,1.26659672]
[1746691335652,0.58704,99340.0,99339.0,1.26659672]
[1746691336154,0.5,99340.0,99339.0,1.26759672]
[1746691336354,0.4492208,99340.0,99339.0,1.33759672]
[1746691336559,0.4079823,99340.0,99339.0,1.33759672]
[1746691336753,0.3413133,99340.0,99339.0,1.69839672]
[1746691336958,0.2737423,99340.0,99339.0,1.69839672]
[1746691337561,0.2737423,99340.0,99339.0,1.69739672]
[1746691337762,0.2767423,99340.0,99339.0,1.69739672]
[1746691338266,0.2767423,99340.0,99339.0,1.70492497]
[1746691344268,0.2767423,99340.0,99339.0,1.70487948]
[1746691345365,0.2767423,99340.0,99339.0,1.70486373]
[1746691346063,0.2767423,99340.0,99339.0,1.70486284]
[1746691346866,0.2767423,99340.0,99339.0,1.34406284]
[1746691347963,0.0996374,99340.0,99339.0,1.34412395]
[1746691348159,0.002557,99340.0,99339.0,1.34412395]
[1746691349065,1e-07,99340.0,99339.0,1.34412395]
[1746691349866,0.4243287,99340.0,99339.0,1.34412387]
[1746691355165,0.4243287,99340.0,99339.0,1.34613717]
[1746691357075,0.3686959,99340.0,99339.0,1.34613717]
[1746691357261,0.323343,99340.0,99339.0,1.34613717]
[1746691357569,0.2889907,99340.0,99339.0,1.34613717]
[1746691358571,0.2616137,99340.0,99339.0,1.34613717]
[1746691358760,0.2361154,99340.0,99339.0,1.34613717]
[1746691359368,0.1571788,99340.0,99339.0,1.34613717]
[1746691359565,1e-07,99340.0,99339.0,1.34613717]
[1746691360869,1e-07,99340.0,99339.0,1.3460824]
[1746691361469,0.33334308,99349.0,99348.0,0.2013024]
[1746691361666,0.24547958,99349.0,99348.0,1.08427523]
[1746691362269,0.30947958,99349.0,99348.0,1.25227523]